Cogmind - Beta 14 @@@ ROGUE MODE // 2024.11.09 @ 19:19:14 Player: jimmyl Result: Destroyed by exploding Neutrino Reactor Performance ------------- Evolutions (0) 0 Regions Visited (1) 200 Robots Destroyed (20) 100 Value Destroyed (525) 525 Prototype IDs (0) 0 Alien Tech Used (0) 0 Bonus (2) 2 TOTAL SCORE: 827 Bonus ------- High Alert Combat Kills 2 Cogmind --------- Core Integrity 0/250 Matter 389/400 Energy 91/100 System Corruption 1% Temperature Cool (34) Movement Rolling (200) Ox8 Location -10/Materials Parts ------- > --- POWER (1) -------- (None) > --- PROPULSION (2) --- Wheel > --- UTILITY (2) ------ Huge Storage Unit Medium Matter Pod > --- WEAPON (2) ------- EM Pulse Gun > --- INVENTORY (25) --- Light Ion Engine Compact Wheel Improved Heat Sink Huge Storage Unit Light Armor Plating Small Laser Peak State ------------ > --- POWER ------------ Ion Engine > --- PROPULSION ------- Aluminum Leg Aluminum Leg > --- UTILITY ---------- Small Storage Unit Medium Matter Pod > --- WEAPON ----------- Assault Rifle Light Assault Rifle > --- INVENTORY -------- Light Ion Engine Light Treads Light Treads Wheel Compact Wheel Light Assault Rifle [Rating: 7] Favorites ----------- Power Ion Engine Engine Ion Engine Propulsion Light Treads Treads Light Treads Leg Aluminum Leg Wheel Wheel Utility Medium Matter Pod Storage Medium Matter Pod Weapon Light Assault Rifle Energy Gun EM Pulse Gun Ballistic Gun Light Assault Rifle Build | -11 -10 ------- Run | Yrd Mat Slots Evolved . | . . Power . | . . Propulsion . | . . Utility . | . . Weapon . | . . Parts Attached 9 | . 9 Power . | . . Engine . | . . Core . | . . Reactor . | . . Propulsion 4 | . 4 Treads 2 | . 2 Leg . | . . Wheel 2 | . 2 Hover . | . . Flight . | . . Utility 2 | . 2 Device . | . . Storage 2 | . 2 Processor . | . . Hackware . | . . Protection . | . . Artifact . | . . Weapon 3 | . 3 Energy Gun 1 | . 1 Energy Cannon . | . . Ballistic Gun 2 | . 2 Ballistic Cannon . | . . Launcher . | . . Special Weapon . | . . Impact Weapon . | . . Slashing Weapon . | . . Piercing Weapon . | . . Special Melee Weapon . | . . Unidentified Prototypes . | . . Parts Lost 7 | . 7 Power 1 | . 1 Propulsion 2 | . 2 Utility . | . . Weapon 4 | . 4 Highest Loss Streak 3 | . 3 To Critical Strikes . | . . Average Slot Usage (%) 94 | . 94 Engine 12 | . 12 Treads 16 | . 16 Leg 3 | . 3 Wheel 5 | . 5 Storage 26 | . 26 Ballistic Gun 27 | . 27 Peak Build Rating 7 | 6 7 Average Rating 6 | 6 6 On Entrance 6 | 6 6 Naked Turns . | . . Heaviest Build 89 | 13 89 Greatest Support 40 | 20 40 Greatest Overweight (x) 8 | . 8 Average Overweight (x) 2 | . 2 Largest Inventory Capacity 25 | 8 25 Average Capacity 14 | 8 14 Most Carried 7 | 6 7 Average Carried 4 | 6 4 Final Capacity 25 | 8 25 Final Carried 6 | 6 6 Class Distribution -------------------- 100% | Mutant Dominant Class ---------------- Mutant | -10/Materials Resources | -11 -10 ----------- Run | Yrd Mat Matter Collected 463 | 200 263 Remotely . | . . Salvage Created 584 | . 584 Parts 34 | . 34 Haulers Intercepted . | . . Recyclers Shooed . | . . Parts Field Recycled . | . . Retrieved Matter . | . . Parts Self-Destructed . | . . Prevented . | . . Kills | -11 -10 ------- Run | Yrd Mat Combat Hostiles Destroyed 13 | . 13 Guns 10 | . 10 AOE 3 | . 3 Classes Destroyed 6 | . 6 Worker 2 | . 2 Recycler 2 | . 2 Mechanic 1 | . 1 Watcher 2 | . 2 Swarmer 3 | . 3 Grunt 10 | . 10 Best Kill Streak 11 | . 11 Combat Bots Only 8 | . 8 Max Kills in Single Turn 6 | . 6 Gunslinging . | . . Exploded 3 | . 3 Melee . | . . Uniques/NPCs Destroyed . | . . Combat | -11 -10 -------- Run | Yrd Mat Hostile Shots Fired 88 | . 88 Missed 21 | . 21 Damage Taken 1110 | . 1110 Core 252 | . 252 Absorbed by Shields . | . . Core Remaining (%) 100 | 100 . Volleys Fired 53 | . 53 Largest 2 | . 2 Hottest 60 | . 60 Shots Fired 98 | . 98 Gun 98 | . 98 Cannon . | . . Launcher . | . . Special . | . . Kinetic 93 | . 93 Thermal . | . . Explosive . | . . Electromagnetic 5 | . 5 Robot Hit Streak 9 | . 9 Robot Miss Streak 3 | . 3 Penetration Max . | . . Secondary Targets . | . . Shots Hit Robots 64 | . 64 Core Hits 37 | . 37 Critical Kills 1 | . 1 Critical Parts Destroyed 1 | . 1 Critical Strikes 2 | . 2 Destroy 2 | . 2 Melee Attacks . | . . Impact . | . . Slashing . | . . Piercing . | . . Sneak Attacks . | . . Combat Hostiles . | . . Follow-up Attacks . | . . Damage Inflicted 1093 | . 1093 Guns 601 | . 601 Cannons . | . . Explosions 489 | . 489 Melee . | . . Ramming 3 | . 3 Kinetic 531 | . 531 Thermal . | . . Explosive 489 | . 489 Electromagnetic 70 | . 70 Impact . | . . Slashing . | . . Piercing . | . . Highest Corruption . | . . Average Corruption . | . . Corruption Purged . | . . Corruption Blocked . | . . Overload Shots . | . . Overflow Damage 18 | . 18 Projectiles . | . . Explosions 18 | . 18 Melee . | . . Knockbacks . | . . Impact . | . . Kinetic . | . . Secondary . | . . Self-Inflicted Damage 225 | . 225 Shots 3 | . 3 Rammed 2 | . 2 Targets Rammed 2 | . 2 Kicked . | . . Crushed . | . . Highest Temperature 51 | . 51 Average Temperature 12 | . 12 Received Heat Transfer 420 | . 420 Siege Activations . | . . Robots Corrupted . | . . Combat Hostiles . | . . Parts Fried . | . . Impact Corruptions . | . . Robots Melted . | . . Combat Hostiles . | . . Parts Melted . | . . Heat Transferred . | . . Parts Sabotaged . | . . Parts Stolen . | . . Parts Stripped . | . . Power Chain Reactions . | . . Alert | -11 -10 ------- Run | Yrd Mat Peak Influence 412 | . 412 Initial . | . . Average 162 | . 162 Maximum Alert Level 2 | . 2 Low Security (%) 46 | 100 46 Level 1 50 | . 50 Level 2 2 | . 2 Level 3 . | . . Level 4 . | . . Level 5 . | . . High Security . | . . Max Security . | . . Squads Dispatched 2 | . 2 Investigation . | . . Extermination . | . . Reinforcement 2 | . 2 Assault . | . . Garrison . | . . Intercept . | . . Searches Triggered . | . . Construction Impeded . | . . Haulers Reinforced . | . . Active Scanning Responses . | . . Cargo Convoy Interrupts . | . . Stealth | -11 -10 --------- Run | Yrd Mat Distress Signals 2 | . 2 Communications Jammed . | . . Distress Signals . | . . Times Spotted 22 | . 22 Peak Tracking Total 5 | . 5 Tactical Retreats . | . . Traps | -11 -10 ------- Run | Yrd Mat Traps Triggered . | . . Indirectly . | . . Trap Hack Attempts . | . . Triggered . | . . Disarmed . | . . Reprogrammed . | . . Reused . | . . Traps Extracted . | . . Installed . | . . Triggered . | . . Machines | -11 -10 ---------- Run | Yrd Mat Machines Disabled 7 | . 7 Max in Single Turn 6 | . 6 Machines Repaired . | . . Machines Dismantled . | . . Machines Sabotaged . | . . Overloaded Fab Kills . | . . Hacking | -11 -10 --------- Run | Yrd Mat Machines Accessed 3 | . 3 Terminals 3 | . 3 Fabricators . | . . Repair Stations . | . . Recycling Units . | . . Scanalyzers . | . . Garrison Access . | . . Total Hacks 6 | . 6 Successful 5 | . 5 Failed 1 | . 1 Catastrophic . | . . Database Lockouts . | . . Manual 5 | . 5 Terminals 6 | . 6 Fabricators . | . . Repair Stations . | . . Recycling Units . | . . Scanalyzers . | . . Garrison Access . | . . Terminal Hacks 5 | . 5 Robot Analysis 3 | . 3 Branch Access Points 1 | . 1 Hauler Manifests 1 | . 1 Fabricator Hacks . | . . Repair Station Hacks . | . . Recycling Unit Hacks . | . . Scanalyzer . | . . Garrison Access Hacks . | . . Unauthorized Hacks . | . . Terminals . | . . Fabricators . | . . Repair Stations . | . . Recycling Units . | . . Scanalyzers . | . . Garrison Access . | . . Data Cores Recovered . | . . Used . | . . Hacking Detections 2 | . 2 Full Trace Events . | . . Feedback Events . | . . Feedback Blocked . | . . Robot Schematics Acquired . | . . Robots Built . | . . Authchips . | . . Time . | . . Total Robot Build Rating . | . . Part Schematics Acquired . | . . Parts Built . | . . Authchips . | . . Time . | . . Total Part Build Rating . | . . Parts Repaired . | . . Time . | . . Parts Recycled . | . . Recycled Matter . | . . Retrieved Matter . | . . Retrieved Components . | . . Parts Scanalyzed . | . . Part Schematics Acquired . | . . Parts Damaged . | . . Bothacking | -11 -10 ------------ Run | Yrd Mat Used RIF Installer . | . . Robots Hacked . | . . Non-combat . | . . Combat . | . . Robot Hacks Applied . | . . Relay Couplers Released . | . . Fabnet Peak Effective % . | . . Robots Rewired . | . . Allies Hacked . | . . Hacks Repelled . | . . Allies | -11 -10 -------- Run | Yrd Mat Total Allies . | . . Largest Group . | . . Highest-Rated Group . | . . Highest-Rated Ally . | . . Total Orders . | . . Ally Attacks . | . . Total Damage . | . . Kills . | . . Allies Corrupted . | . . Allies Melted . | . . Intel | -11 -10 ------- Run | Yrd Mat Robot Analysis Total 3 | . 3 Derelict Logs Recovered . | . . Drone Launches . | . . Drone Recoveries . | . . Exploration | -11 -10 ------------- Run | Yrd Mat Turns Passed 867 | 2 865 Spaces Moved 419 | 2 417 Core . | . . Treads 202 | . 202 Legs 89 | 2 87 Wheels 128 | . 128 Hover . | . . Flight . | . . Fastest Speed 120 | 120 120 Average Speed 163 | 120 164 Slowest Speed 320 | 120 320 Overloaded Moves . | . . Propulsion Burnouts . | . . Robots Hopped . | . . Cave-ins Triggered . | . . Exploration Rate (%) 34 | 2 67 Regions Visited 1 Branch Regions . Pre-discovered Areas . | . . Known Exits Taken . | . . Unknown Exits Taken 1 | 1 . Scrap Searched . | . . Spaces Dug . | . . Terrain Destroyed 23 | . 23 Melee . | . . Projectile . | . . AOE 23 | . 23 Terrain Rammed . | . . Walls Destroyed . | . . Machines Disabled . | . . Actions | -11 -10 --------- Run | Yrd Mat Total 517 | 1 516 Wait 23 | . 23 Move 418 | 1 417 Hop . | . . Pick Up 7 | . 7 Fast Attach 2 | . 2 Attach 6 | . 6 Detach . | . . Swap 1 | . 1 Drop 5 | . 5 Fire 53 | . 53 Melee . | . . Ram 1 | . 1 Kick . | . . Crush 1 | . 1 Escape Stasis . | . . Rewire . | . . Trap . | . . Miscellaneous . | . . Route ------- -11/Scrapyard -10/Materials (discovered 3 exits: [*Mat x2] / *Min) History --------- Turn | Location | Event 1 | -11/Scrapyard | Discovered new exit (range 1) 3 | -11/Scrapyard | Entered Materials 145 | -10/Materials | Identified exit to Mines 161 | -10/Materials | Discovered new exit (range 12) 303 | -10/Materials | Build established: Mutant 399 | -10/Materials | Destroyed 8 combat bots 679 | -10/Materials | Discovered new exit (range 11) 739 | -10/Materials | Core integrity fell below 50% 769 | -10/Materials | Core integrity fell below 20% 796 | -10/Materials | Lost 3 parts (1p2n) 868 | -10/Materials | Destroyed by exploding Neutrino Reactor Last Messages --------------- 00790_ K-01 Serf destroyed. 00791_ Acquired 2 matter. 00797_ Acquired Imp. Heat Sink. 00801_ R-06 Scavenger collects Wheel. 00805_ R-06 Scavenger collects Lgt. Ion Engine. 00806_ Acquired Sml. Laser. 00809_ R-06 Scavenger collects Aluminum Leg. 00831_ Acquired EM Pulse Gun. 00833_ K-01 Serf collects debris. 00844_ Lgt. Assault Rifle destroyed. 00850_ R-06 Scavenger destroyed. 00852_ G-34 Mercenary misfires. 00853_ G-34 Mercenary destroyed. 00864_ Critical hit (Burn: +37). 00868_ Neutrino Reactor explodes. 00868_ G-47 Trooper destroyed. 00868_ Lgt. Assault Rifle destroyed. 00868_ Neutrino Reactor explodes. 00868_ Emergency Access malfunctions. 00868_ Chain reaction triggered in Lgt. Ion Engine. Map ----- +----------------------------------------------------+ | ???????????????????????????# """ #????# | | ???????????????????????????# ? ?????# | | ??????????????????????????????? ?????# | | ????????????????????????????????"" ?????# | | ????????????????????????????????"" ?????# | | ?????????????????????????????????" ?????# | | ????????????????????????????????? ?????# | | ????????????????????????????????? ###+#### | | ????????????????????????????????? | | ???????????????????????????????? | | ???????????????????????????????? ! | | ???????????????????????????????????# % | | ???????????????????????????????????# | | ???????????????????????????????????# | | ???????????????????????????????????# | | ???????????????????????????+???????# | | ?????????????????????????? #???????# % | | ?????????????????????????? #???????# | | ????????????????????????? ????????# | | ??????????????###?####### ######???# | | ??????????????? # ??### | | ???????????????? # """??# | | ????????????????? / """??# | | ??????????????????# """ ## | | ??????????????????# ## | | ??????????????????# @=[ ! ## | | ??????????????????### #####???# | | ????????????##+#####!=% ;#????#### | | ????????????# ===;#???##! "T" | | ????????????# ##???#! | | ????????????# """ [ #????#! | | ????????????# "T" [[ #????#! ###+#### | | ????????????# #????#! # T # | | ????????????# #????##! # + | | ????????????# ########## # ## | | ????????????+ # ! ## | | ????????????#^^###### #| ## | | ????????????# ?????# # """ ## | | ??????????? ??????# # """ ## | | ?????????? ???????# # """ ## | | ?????????###????????# ###### < # ## | | ????????????????????######+####### # """ ## | | ?????????????????????# = % ##### """ ## | | ?????????????????# + #???# """ ## | | ?????????????????##### #???# ? #? | | ?????????????????????# """ #???####??##? | | ?????????????????????# """ #???????????? | | ?????????????????????# """ "T" #???????????? | | ?????????????????????# """ #???????????? | | ?????????????????????#############???????????? | +----------------------------------------------------+ Best States ------------- Heat Dissipation 25 Energy Generation 10 Energy Capacity 250 Matter Stores 400 Matter Capacity 400 Sight Range 16 Terrain Scan Density 10 Evasion (%) 55 Recoil Reduction 2 Item Schematics ----------------- None Robot Schematics ------------------ None Fabricated ------------ Nothing Alien Tech Used ----------------- None Achievements -------------- None Challenges ------------ None Game ------ Seed EtherialHardenedModule Manual? 0 Play Time 00:09:50 Cumulative 152.1 hours Start 2024.11.09 @ 19:14:12 End 2024.11.09 @ 19:19:14 Sessions 1 Manual Loads 0 Difficulty Rogue Special Mode None Game No. 252 Rogue 251 Adventurer 1 Explorer 0 Win Type - Total 2 Types 2/0/0/0/0/0/0/0/0 Lore% 74 Gallery% 70 Achievement% 52 Wizard Run 0 Options --------- Layout 1 ASCII 0 Keyboard 0 Movement Mouse Keybinds 0 Fullscreen 2 Font 20/SmallcapsGlow Map View 54x42 Zoom Use 0% Tactical HUD 1 Map Filters NONE Filters NONE Steam 0 RUN: 78e07cac-fe76-4adb-a5c6-eaa7965e52e3